Cogmind - Beta 9.1 @@@ ROGUE MODE // 2019.10.28 @ 20:05:07 // Halloween2019/Abominations Player: eldritch Result: Destroyed by Lesser Abomination with Small Laser Performance ------------- Evolutions (0) 0 Regions Visited (1) 200 Robots Destroyed (5) 25 Value Destroyed (218) 218 Prototype IDs (0) 0 Alien Tech Used (0) 0 Bonus (0) 0 TOTAL SCORE: 443 Bonus ------- None Cogmind --------- Core Integrity 0/250 Matter 300/300 Energy 99/100 System Corruption 0% Temperature Cool (258) Location -10/Materials Parts ------- Power (1) Propulsion (2) Utility (2) Small Storage Unit Weapon (2) Inventory (6) Light Ion Engine Aluminum Leg Grenade Launcher Peak State ------------ Power Light Ion Engine Propulsion Compact Wheel Compact Wheel Utility Small Storage Unit Light Armor Plating Weapon Assault Rifle Light Assault Rifle Inventory Light Ion Engine Aluminum Leg Aluminum Leg Medium Laser Small Laser Grenade Launcher [Rating: 7] Favorites ----------- Power Light Ion Engine Engine Light Ion Engine Propulsion Compact Wheel Leg Aluminum Leg Wheel Compact Wheel Utility Small Storage Unit Storage Small Storage Unit Protection Light Armor Plating Weapon Light Assault Rifle Energy Gun Medium Laser Ballistic Gun Light Assault Rifle Build | -11 -10 ------- Run | Scr Mat Slots Evolved . | . . Power . | . . Propulsion . | . . Utility . | . . Weapon . | . . Parts Attached 6 | . 6 Power . | . . Engine . | . . Core . | . . Reactor . | . . Propulsion 3 | . 3 Treads . | . . Leg 1 | . 1 Wheel 2 | . 2 Hover . | . . Flight . | . . Utility 1 | . 1 Device . | . . Storage . | . . Processor . | . . Hackware . | . . Protection 1 | . 1 Artifact . | . . Weapon 2 | . 2 Energy Gun 2 | . 2 Energy Cannon . | . . Ballistic Gun . | . . Ballistic Cannon . | . . Launcher . | . . Special Weapon . | . . Impact Weapon . | . . Slashing Weapon . | . . Piercing Weapon . | . . Special Melee Weapon . | . . Unidentified Prototypes . | . . Parts Lost 9 | . 9 Power 1 | . 1 Propulsion 3 | . 3 Utility 1 | . 1 Weapon 4 | . 4 Highest Loss Streak 6 | . 6 Average Slot Usage (%) 80 | . 80 Engine 13 | . 13 Leg 5 | . 5 Wheel 17 | . 17 Storage 14 | . 14 Protection 5 | . 5 Energy Gun 4 | . 4 Ballistic Gun 18 | . 18 Naked Turns . | . . Heaviest Build 13 | 10 13 Greatest Support 32 | 20 32 Greatest Overweight (x) 2 | . 2 Average Overweight (x) . | . . Largest Inventory Capacity 6 | 6 6 Average Capacity 6 | 6 6 Most Carried 6 | 6 6 Average Carried 5 | 6 4 Final Capacity 6 | 6 6 Final Carried 6 | 6 3 Class Distribution -------------------- 100% | Mutant Dominant Class ---------------- Mutant | -10/Materials Resources | -11 -10 ----------- Run | Scr Mat Matter Collected 295 | 200 95 Remotely . | . . Salvage Created 173 | . 173 Parts 14 | . 14 Haulers Intercepted . | . . Recyclers Shooed . | . . Parts Field Recycled . | . . Retrieved Matter . | . . Parts Self-Destructed . | . . Prevented . | . . Kills | -11 -10 ------- Run | Scr Mat Combat Hostiles Destroyed 4 | . 4 Guns 4 | . 4 Classes Destroyed 3 | . 3 Grunt 2 | . 2 Abomination 2 | . 2 Anomaly 1 | . 1 Best Kill Streak 2 | . 2 Combat Bots Only 2 | . 2 Max Kills in Single Turn 1 | . 1 Gunslinging . | . . Exploded . | . . Melee . | . . Uniques/NPCs Destroyed . | . . Combat | -11 -10 -------- Run | Scr Mat Damage Taken 1257 | . 1257 Core 258 | . 258 Absorbed by Shields . | . . Core Remaining (%) 100 | 100 . Volleys Fired 24 | . 24 Largest 2 | . 2 Hottest 70 | . 70 Shots Fired 46 | . 46 Gun 46 | . 46 Cannon . | . . Launcher . | . . Special . | . . Kinetic 38 | . 38 Thermal 8 | . 8 Explosive . | . . Electromagnetic . | . . Robot Hit Streak 15 | . 15 Robot Miss Streak 5 | . 5 Penetration Max . | . . Secondary Targets 1 | . 1 Max Gunslinging Chain 1 | . 1 Shots Hit Robots 29 | . 29 Core Hits 16 | . 16 Critical Hits 1 | . 1 Critical Kills . | . . Critical Parts Destroyed 1 | . 1 Melee Attacks . | . . Impact . | . . Slashing . | . . Piercing . | . . Sneak Attacks . | . . Combat Hostiles . | . . Follow-up Attacks . | . . Damage Inflicted 343 | . 343 Guns 343 | . 343 Cannons . | . . Explosions . | . . Melee . | . . Ramming . | . . Kinetic 274 | . 274 Thermal 69 | . 69 Explosive . | . . Electromagnetic . | . . Impact . | . . Slashing . | . . Piercing . | . . Highest Corruption . | . . Average Corruption . | . . Corruption Purged . | . . Overload Shots . | . . Overflow Damage . | . . Projectiles . | . . Explosions . | . . Melee . | . . Knockbacks . | . . Impact . | . . Kinetic . | . . Secondary . | . . Self-Inflicted Damage . | . . Shots . | . . Rammed . | . . Targets Rammed . | . . Kicked . | . . Crushed . | . . Highest Temperature 450 | . 450 Average Temperature 108 | . 108 Received Heat Transfer 114 | . 114 Effects 4 | . 4 Shutdowns 2 | . 2 Interference 1 | . 1 Matter Decay 1 | . 1 Siege Activations . | . . Robots Corrupted . | . . Combat Hostiles . | . . Parts Fried . | . . Impact Corruptions . | . . Robots Melted . | . . Combat Hostiles . | . . Parts Melted . | . . Heat Transferred 129 | . 129 Parts Sabotaged . | . . Parts Stolen . | . . Parts Stripped . | . . Power Chain Reactions . | . . Missiles Intercepted . | . . Alert | -11 -10 ------- Run | Scr Mat Peak Influence 40 | . 40 Average Influence 10 | . 11 Maximum Alert Level . | . . Low Security (%) 100 | . . Level 1 . | . . Level 2 . | . . Level 3 . | . . Level 4 . | . . Level 5 . | . . High Security . | . . Max Security . | . . Squads Dispatched 3 | . 3 Investigation . | . . Extermination . | . . Reinforcement 3 | . 3 Assault . | . . Garrison . | . . Intercept . | . . Construction Impeded . | . . Haulers Reinforced . | . . Stealth | -11 -10 --------- Run | Scr Mat Distress Signals 1 | . 1 Communications Jammed . | . . Distress Signals . | . . Times Spotted 10 | . 10 Peak Tracking Total 5 | . 5 Tactical Retreats 1 | . 1 Traps | -11 -10 ------- Run | Scr Mat Traps Triggered . | . . Indirectly . | . . Trap Hack Attempts . | . . Triggered . | . . Disarmed . | . . Reprogrammed . | . . Reused . | . . Traps Extracted . | . . Installed . | . . Triggered . | . . Machines | -11 -10 ---------- Run | Scr Mat Machines Disabled . | . . Max in Single Turn . | . . Machines Sabotaged . | . . Garrisons Compromised . | . . Overloaded Fab Kills . | . . Fab Network Shutdowns . | . . Hacking | -11 -10 --------- Run | Scr Mat Machines Accessed . | . . Terminals . | . . Fabricators . | . . Repair Stations . | . . Recycling Units . | . . Scanalyzers . | . . Garrison Access . | . . Total Hacks . | . . Successful . | . . Failed . | . . Catastrophic . | . . Database Lockouts . | . . Manual . | . . Terminals . | . . Fabricators . | . . Repair Stations . | . . Recycling Units . | . . Scanalyzers . | . . Garrison Access . | . . Terminal Hacks . | . . Fabricator Hacks . | . . Repair Station Hacks . | . . Recycling Unit Hacks . | . . Scanalyzer . | . . Garrison Access Hacks . | . . Unauthorized Hacks . | . . Terminals . | . . Fabricators . | . . Repair Stations . | . . Recycling Units . | . . Scanalyzers . | . . Garrison Access . | . . Data Cores Recovered . | . . Used . | . . Hacking Detections . | . . Full Trace Events . | . . Feedback Events . | . . Feedback Blocked . | . . Robot Schematics Acquired . | . . Robots Built . | . . Matter . | . . Time . | . . Total Robot Build Rating . | . . Part Schematics Acquired . | . . Parts Built . | . . Matter . | . . Time . | . . Total Part Build Rating . | . . Parts Repaired . | . . Time . | . . Parts Recycled . | . . Recycled Matter . | . . Retrieved Matter . | . . Retrieved Components . | . . Parts Scanalyzed . | . . Part Schematics Acquired . | . . Parts Damaged . | . . Bothacking | -11 -10 ------------ Run | Scr Mat Used RIF Installer . | . . Robots Hacked . | . . Non-combat . | . . Combat . | . . Robot Hacks Applied . | . . Relay Couplers Released . | . . Robots Rewired . | . . Allies Hacked . | . . Hacks Repelled . | . . Allies | -11 -10 -------- Run | Scr Mat Total Allies . | . . Largest Group . | . . Highest-Rated Group . | . . Highest-Rated Ally . | . . Total Orders . | . . Ally Attacks . | . . Total Damage . | . . Kills . | . . Allies Corrupted . | . . Allies Melted . | . . Intel | -11 -10 ------- Run | Scr Mat Robot Analysis Total . | . . Derelict Logs Recovered . | . . Drone Launches . | . . Drone Recoveries . | . . Exploration | -11 -10 ------------- Run | Scr Mat Turns Passed 272 | 9 263 Spaces Moved 189 | 8 181 Core 8 | . 8 Treads . | . . Legs 21 | 8 13 Wheels 160 | . 160 Hover . | . . Flight . | . . Fastest Speed 100 | 120 100 Average Speed 102 | 120 101 Slowest Speed 150 | 120 150 Overloaded Moves . | . . Propulsion Burnouts . | . . Robots Hopped . | . . Cave-ins Triggered . | . . Exploration Rate (%) 20 | 2 38 Regions Visited 1 Branch Regions . Pre-discovered Areas . | . . Known Exits Taken . | . . Unknown Exits Taken 1 | 1 . Scrap Searched . | . . Spaces Dug . | . . Terrain Destroyed . | . . Melee . | . . Projectile . | . . AOE . | . . Actions | -11 -10 --------- Run | Scr Mat Total 220 | 7 213 Wait . | . . Move 186 | 7 179 Hop . | . . Pick Up 2 | . 2 Fast Attach 1 | . 1 Attach 3 | . 3 Detach . | . . Swap 2 | . 2 Drop 2 | . 2 Fire 24 | . 24 Melee . | . . Ram . | . . Kick . | . . Crush . | . . Escape Stasis . | . . Rewire . | . . Trap . | . . Miscellaneous . | . . Route ------- -11/Scrapyard -10/Materials History --------- Turn | Location | Event 1 | -11/Scrapyard | Discovered new exit (range 3) 10 | -11/Scrapyard | Entered Materials 155 | -10/Materials | Lost 3 parts (1n1u1w) 160 | -10/Materials | Discovered new exit (range 7) 237 | -10/Materials | Discovered new exit (range 10) 260 | -10/Materials | Core integrity fell below 50% 264 | -10/Materials | Core integrity fell below 20% 273 | -10/Materials | Destroyed by Lesser Abomination with Small Laser Last Messages --------------- 00224_ Power failure, Lgt. Ion Engine shutdown. 00228_ Overheating: Matter decay (-50). 00232_ Critical hit. 00232_ Med. Laser destroyed. 00237_ EXIT=FOUND (Blocked) 00238_ Unstable Anomaly suddenly flashes brightly. 00239_ Engulfed by violent ripples tearing at the fabric of space. 00244_ Unstable Anomaly suddenly flashes brightly. 00249_ Com. Wheel destroyed. 00250_ Power failure, Lgt. Ion Engine shutdown. 00252_ Overheating: System interference. 00252_ Lgt. Assault Rifle temporarily disabled. 00258_ Frozen by Ice Anomaly. 00258_ Sml. Laser destroyed. 00258_ Lgt. Assault Rifle destroyed. 00259_ Frozen by Ice Anomaly. 00264_ Unstable Anomaly suddenly flashes brightly. 00264_ Engulfed by violent ripples tearing at the fabric of space. 00264_ Lgt. Ion Engine destroyed. 00268_ Aluminum Leg destroyed. Map ----- +----------------------------------------------------+ | | | | | ?????????????????????????????????????????????????? | | ?????????????????????????????????????????????????? | | ?????????????????????????????????????????????????? | | ?????????????????????????????????????????????????? | | ?????????????????????????????????????????????????? | | ?????????????????????????????????????????????????? | | ?????????????????????????????????????????????????? | | ?????????????????????????????????????????????????? | | ?????????????????????????????????????????????????? | | ?????????????????????????????????????????????????? | | ?????????????????????????????????????????????????? | | ?????????????????????????????????????????????????? | | ?????????????????????????????????????????????????? | | ?????????????????????????????????????????????????? | | ?????????????????????????????????????????????????? | | ?????????????????????????????????????????????????? | | ?????????????????????????????????????????????????? | | ?????????????? ????????????????????????????????? | | ????????????? ????##+###+##?????????????????? | | ?????????????# ???# ??????????????????? | | ?????????????? ??# ???????????????????? | | ?????????????? ??# % ????????????????????? | | ??????????????? ?# #?????????????????????? | | ????????????????""" ## @A##????????????????????? | | ?????????????#? """ # #????????????????????? | | ??????????? # """ A #????????????????????? | | ????????????+% #????????????????????? | | ????????????# % % #????????????????????? | | ????????????###+####### % #????????????????????? | | ??????????????????????## ##????????????????????? | | ???????????????????????# #######???????????????? | | ???????????????????????# ????????? | | ???????????????????????# %#######???????????????? | | ????????????????????#### ##????????????????????? | | ????????????????????#""" #????????????????????? | | ????????????????????#" #????????????????????? | | ????????????????????#" nA #????????????????????? | | ????????????????????#"" < #????????????????????? | | ????????????????????#" #????????????????????? | | ????????????????????#" #????????????????????? | | ????????????????????#""" #????????????????????? | | ????????????????????#### ##????????????????????? | | ???????????????????????# #?????????????????????? | | ??########?????????????# #?????????????????????? | | ??# #?????????????# #?????????????????????? | | ??# "" #######??????## ##????????????????????? | | ??# "T # #?###### #????????????????????? | | ??# "" # ### # ???????????????? | +----------------------------------------------------+ Best States ------------- Heat Dissipation 25 Energy Generation 10 Energy Capacity 125 Matter Stores 300 Matter Capacity 300 Sight Range 16 Terrain Scan Density 10 Armor Coverage 150 Evasion (%) 40 Item Schematics ----------------- None Robot Schematics ------------------ None Fabricated ------------ Nothing Alien Tech Used ----------------- None Achievements -------------- None Challenges ------------ None Game ------ Seed UtilityImpulseNanoactuators Manual? 0 Play Time 00:05:12 Cumulative 194.4 hours Start 2019.10.28 @ 20:00:47 End 2019.10.28 @ 20:05:07 Sessions 1 Manual Loads 0 Difficulty Rogue Special Mode Halloween2019/Abominations Game No. 384 Rogue 384 Adventurer 0 Explorer 0 Win Type - Total 3 Types 3/0/0/0/0/0/0 Lore% 52 Gallery% 60 Achievement% 47 Wizard Run 0 Options --------- ASCII 0 Keyboard 0 Movement Arrows Keybinds 0 Fullscreen 1 Font 18/SmallcapsGlow Map View 76x50 Tactical HUD 1 Map Filters NONE Filters NONE Steam 1 RUN: a13d1a74-4e42-40b8-af41-eae435fee4d1